fUST/lending_fUST_20241123
["ID","MTS","AMOUNT","RATE_DAILY","PERIOD"]
[343110794,1732363869491,-1037.38,0.00020821,2]
[343110795,1732363869537,-1495.76,0.00020821,2]
[343110796,1732363869582,-2803.62,0.00020821,2]
[343110797,1732363869631,-555.84112013,0.00020821,2]
[343110798,1732363869676,-2345.51,0.00020821,2]
[343110799,1732363869725,-1337.23,0.00020821,2]
[343110800,1732363869770,-500.0,0.00020821,2]
[343110801,1732363869815,-1765.88,0.00020821,2]
[343110802,1732363869860,-500.0,0.00020821,2]
[343110803,1732363869905,-3077.62,0.00020821,2]
[343110804,1732363869952,-500.0,0.00020821,2]
[343110805,1732363869997,-1166.03,0.00020821,2]
[343110806,1732363870043,-500.0,0.00020821,2]
[343110807,1732363870098,-500.0,0.00020821,2]
[343110808,1732363870149,-974.99,0.00020821,2]
[343110809,1732363870196,-861.9,0.00020821,2]
[343110810,1732363870243,-1189.97,0.00020821,2]
[343110811,1732363870291,-577.2,0.00020821,2]
[343110812,1732363870337,-1458.21,0.00020821,2]
[343110813,1732363870384,-500.0,0.00020821,2]
[343110814,1732363870431,-1532.1,0.00020821,2]
[343110815,1732363870482,-500.0,0.00020821,2]
[343110816,1732363870546,-1013.64,0.00020821,2]
[343110817,1732363870633,-1862.24,0.00020821,2]
[343110818,1732363870733,-500.0,0.00020821,2]
[343110819,1732363870801,-9026.67,0.00020821,2]
[343110820,1732363870849,-2662.96,0.00020821,2]
[343110821,1732363870893,-500.0,0.00020821,2]
[343110822,1732363870938,-500.0,0.00020821,2]
[343110823,1732363870984,-1913.0,0.00020821,2]
[343110824,1732363871028,-500.0,0.00020821,2]
[343110825,1732363871072,-1506.09,0.00020821,2]
[343110826,1732363871119,-500.0,0.00020821,2]
[343110827,1732363871163,-500.0,0.00020821,2]
[343110828,1732363871208,-1121.28,0.00020821,2]
[343110829,1732363871251,-623.68,0.00020821,2]
[343110830,1732363871297,-202.80250402,0.00020821,2]
[343110831,1732363871343,-1909.7,0.00020821,2]
[343110832,1732363871399,-656.98,0.00020821,2]
[343110833,1732363871448,-500.0,0.00020821,2]
[343110834,1732363871494,-500.0,0.00020821,2]
[343110835,1732363871543,-500.0,0.00020821,2]
[343110836,1732363871589,-1555.38,0.00020821,2]
[343110837,1732363871770,-565.37,0.00020821,2]
[343110838,1732363871817,-603.55,0.00020821,2]
[343110839,1732363871862,-798.23,0.00020821,2]
[343110840,1732363871906,-525.16575775,0.00020821,2]
[343110841,1732363871950,-500.0,0.00020821,2]
[343110842,1732363871994,-500.0,0.00020821,2]
[343110843,1732363872039,-839.02,0.00020821,2]
[343110844,1732363872085,-528.51,0.00020821,2]
[343110845,1732363872132,-500.0,0.00020821,2]
[343110846,1732363872177,-500.0,0.00020821,2]
[343110847,1732363872221,-500.0,0.00020821,2]
[343110848,1732363872269,-1075.91,0.00020821,2]
[343110849,1732363872315,-500.0,0.00020821,2]
[343110850,1732363872360,-535.9,0.00020821,2]
[343110851,1732363872405,-817.22,0.00020821,2]
[343110852,1732363872450,-474.29101641,0.00020821,2]
[343110853,1732363872494,-1151.72,0.00020821,2]
[343110854,1732363872539,-500.0,0.00020821,2]
[343110855,1732363872584,-978.05,0.00020821,2]
[343110856,1732363872632,-500.0,0.00020821,2]
[343110857,1732363872678,-500.0,0.00020821,2]
[343110858,1732363872724,-6942.67,0.00020821,2]
[343110859,1732363872771,-500.0,0.00020821,2]
[343110860,1732363872815,-953.96,0.00020821,2]
[343110861,1732363872865,-500.0,0.00020821,2]
[343110862,1732363872908,-500.0,0.00020821,2]
[343110863,1732363872952,-52463.48,0.00020821,2]
[343110864,1732363872996,-500.0,0.00020821,2]
[343110865,1732363873041,-509.26656454,0.00020821,2]
[343110866,1732363873087,-500.0,0.00020821,2]
[343110867,1732363873140,-500.0,0.00020821,2]
[343110868,1732363873187,-500.0,0.00020821,2]
[343110869,1732363873239,-772.5,0.00020821,2]
[343110870,1732363873289,-500.0,0.00020821,2]
[343110871,1732363873365,-500.0,0.00020821,2]
[343110872,1732363873441,-1910.73,0.00020821,2]
[343110873,1732363873511,-500.0,0.00020821,2]
[343110874,1732363873584,-1061.88,0.00020821,2]
[343110875,1732363873649,-500.0,0.00020821,2]
[343110876,1732363873719,-4477.26,0.00020821,2]
[343110877,1732363873780,-909.52,0.00020821,2]
[343110878,1732363873842,-1682.46,0.00020821,2]
[343110879,1732363873907,-820.13,0.00020821,2]
[343110880,1732363873969,-1013.63,0.00020821,2]
[343110881,1732363874032,-500.0,0.00020821,2]
[343110882,1732363874096,-2690.84,0.00020821,2]
[343110883,1732363874160,-2805.8,0.00020821,2]
[343110884,1732363874224,-500.0,0.00020821,2]
[343110885,1732363874287,-693.81,0.00020821,2]
[343110886,1732363874347,-500.0,0.00020821,2]
[343110887,1732363874408,-1206.73,0.00020821,2]
[343110888,1732363874468,-500.0,0.00020821,2]
[343110889,1732363874530,-718.66,0.00020821,2]
[343110890,1732363874588,-500.0,0.00020821,2]
[343110891,1732363874651,-6072.35,0.00020821,2]
[343110892,1732363874711,-3779.33,0.00020821,2]
[343110893,1732363874771,-500.0,0.00020821,2]
[343110894,1732363874830,-500.0,0.00020821,2]
[343110895,1732363874892,-500.0,0.00020821,2]
[343110896,1732363874953,-500.0,0.00020821,2]
[343110897,1732363875013,-500.0,0.00020821,2]
[343110898,1732363875073,-250.0,0.00020821,2]
[343110899,1732363875133,-1172.77,0.00020821,2]
[343110900,1732363875195,-500.0,0.00020821,2]
[343110901,1732363875255,-1095.66,0.00020821,2]
[343110902,1732363875314,-500.0,0.00020821,2]
[343110903,1732363875373,-532.7742584,0.00020821,2]
[343110904,1732363875433,-500.0,0.00020821,2]
[343110905,1732363875668,-500.0,0.00020821,2]
[343110906,1732363875721,-500.0,0.00020821,2]
[343110907,1732363875767,-1092.97,0.00020821,2]
[343110908,1732363875812,-752.35,0.00020821,2]
[343110909,1732363875858,-500.0,0.00020821,2]
[343110910,1732363875905,-1905.13,0.00020821,2]
[343110911,1732363875952,-500.0,0.00020821,2]
[343110912,1732363875998,-504.9007162,0.00020821,2]
[343110913,1732363876050,-938.66,0.00020821,2]
[343110914,1732363876099,-500.0,0.00020821,2]
[343110915,1732363876149,-500.0,0.00020821,2]
[343110916,1732363876196,-500.0,0.00020821,2]
[343110917,1732363876244,-500.0,0.00020821,2]
[343110918,1732363876290,-732.4,0.00020821,2]
[343110919,1732363876336,-500.0,0.00020821,2]
[343110920,1732363876386,-500.0,0.00020821,2]
[343110921,1732363876431,-500.0,0.00020821,2]
[343110922,1732363876479,-500.0,0.00020821,2]
[343110923,1732363876526,-1065.5,0.00020821,2]
[343110924,1732363876571,-500.0,0.00020821,2]
[343110925,1732363876616,-2062.38,0.00020821,2]
[343110926,1732363876663,-500.0,0.00020821,2]
[343110927,1732363876708,-500.0,0.00020821,2]
[343110928,1732363876756,-22802.25,0.00020821,2]
[343110929,1732363876802,-842.43,0.00020821,2]
[343110930,1732363876847,-500.0,0.00020821,2]
[343110931,1732363876895,-500.0,0.00020821,2]
[343110932,1732363876939,-2917.26,0.00020821,2]
[343110933,1732363876984,-12661.24,0.00020821,2]
[343110934,1732363877031,-500.0,0.00020821,2]
[343110935,1732363877075,-500.0,0.00020821,2]
[343110936,1732363877119,-1335.26,0.00020821,2]
[343110937,1732363877167,-1609.55,0.00020821,2]
[343110938,1732363877213,-500.0,0.00020821,2]
[343110939,1732363877258,-6871.74,0.00020821,2]
[343110940,1732363877304,-1889.34,0.00020821,2]
[343110941,1732363877351,-160.0,0.00020821,5]
[343110942,1732363877399,-603.2010555,0.00020822,2]
[343110943,1732363877444,-500.0,0.00020822,2]
[343110944,1732363877489,-500.0,0.00020822,2]
[343110945,1732363877535,-602.18249524,0.00020886,2]
[343110946,1732363877581,-1132.2,0.00020904,2]
[343110947,1732363877628,-500.0,0.00020938,2]
[343110948,1732363877675,-201.2,0.00020943,2]
[343110949,1732363877723,-2000.0,0.00020947,2]
[343110950,1732363877770,-86016.84724538,0.00021,2]
[343110951,1732363883620,-147595.50000001,0.000178,2]
[343110952,1732363883651,-853.74183,0.000178,2]
[343110953,1732363883849,-101550.75816999,0.000178,2]
[343110954,1732363883859,-513.16167736,0.00017899,2]
[343110955,1732363883871,-513.16167736,0.000179,2]
[343110956,1732363883881,-513.16167736,0.000179,2]
[343110957,1732363883891,-513.16167736,0.000179,2]
[343110958,1732363883901,-330.0,0.00019078,2]
[343110959,1732363883913,-243.82,0.00019168,3]
[343110960,1732363883923,-731.51,0.00019168,3]
[343110961,1732363883933,-500.0,0.00019173,2]
[343110962,1732363883943,-501.20262715,0.00019173,2]
[343110963,1732363883952,-500.0,0.00019178,2]
[343110964,1732363883961,-500.0,0.00019178,2]
[343110965,1732363883971,-500.0,0.00019178,2]
[343110966,1732363883981,-500.0,0.00019178,2]
[343110967,1732363883991,-500.0,0.00019178,2]
[343110968,1732363884001,-631.15,0.00019178,2]
[343110969,1732363884011,-500.0,0.00019178,2]
[343110970,1732363884023,-522.01034646,0.00019452,2]
[343110971,1732363884033,-380.31694149,0.00019452,2]
[343110972,1732363884043,-500.0,0.00019452,2]
[343110973,1732363884052,-500.0,0.00019452,2]
[343110974,1732363884061,-614.19685303,0.00019452,2]
[343110975,1732363884073,-631.15,0.00019452,2]
[343110976,1732363884083,-500.0,0.00019452,2]
[343110977,1732363884094,-558.24392497,0.00019473,2]
[343110978,1732363884107,-521.57615245,0.00019726,2]
[343110979,1732363884118,-500.0,0.00019726,2]
[343110980,1732363884128,-631.15,0.00019726,2]
[343110981,1732363884139,-393.71156544,0.00019726,2]
[343110982,1732363884150,-202.07702104,0.00019973,2]
[343110983,1732363884160,-500.0,0.0002,2]
[343110984,1732363884170,-631.15,0.0002,2]
[343110985,1732363884180,-263.90626579,0.0002,2]
[343110986,1732363884191,-1142.95,0.00020273,2]
[343110987,1732363884201,-500.0,0.00020273,2]
[343110988,1732363884211,-631.15,0.00020273,2]
[343110989,1732363884220,-487.64,0.00020538,3]
[343110990,1732363884231,-1142.95,0.00020547,2]
[343110991,1732363884240,-500.0,0.00020547,2]
[343110992,1732363884250,-631.15,0.00020547,2]
[343110993,1732363884260,-1142.95,0.00020821,2]
[343110994,1732363884270,-500.0,0.00020821,2]
[343110995,1732363884280,-631.15,0.00020821,2]
[343110996,1732363884289,-76730.40151644,0.00021,2]
[343110997,1732363884299,-6495.04359804,0.00021,2]
[343110998,1732363884308,-362.57512031,0.00021,5]
[343110999,1732363884318,-261.75429675,0.00021,2]
[343111000,1732363884328,-10275.5593581,0.00021,2]
[343111001,1732363884338,-235.89896734,0.00021,2]
[343111002,1732363884348,-3000.0,0.00021,2]
[343111003,1732363884358,-3000.0,0.0002101,2]
[343111004,1732363884369,-3000.0,0.0002102,2]
[343111005,1732363884379,-3000.0,0.0002103,2]
[343111006,1732363884389,-3000.0,0.0002104,2]
[343111007,1732363884400,-3000.0,0.0002105,2]
[343111008,1732363884410,-3000.0,0.0002106,2]
[343111009,1732363884420,-3000.0,0.0002107,2]
[343111010,1732363884430,-3000.0,0.0002108,2]
[343111011,1732363884439,-3000.0,0.0002109,2]
[343111012,1732363884449,-500.0,0.00021095,2]
[343111013,1732363884458,-500.0,0.00021095,2]
[343111014,1732363884467,-500.0,0.00021095,2]
[343111015,1732363884476,-500.0,0.00021095,2]
[343111016,1732363884485,-500.0,0.00021095,2]
[343111017,1732363884495,-500.0,0.00021095,2]
[343111018,1732363884504,-256.03588795,0.00021095,2]
[343111019,1732363884514,-500.0,0.00021095,2]
[343111020,1732363884523,-500.0,0.00021095,2]
[343111021,1732363884533,-500.0,0.00021095,2]
[343111022,1732363884543,-500.0,0.00021095,2]
[343111023,1732363884553,-500.0,0.00021095,2]
[343111024,1732363884563,-500.0,0.00021095,2]
[343111025,1732363884572,-543.81,0.00021095,2]
[343111026,1732363884581,-402.53137026,0.00021095,2]
[343111027,1732363884591,-259.23501544,0.00021095,2]
[343111028,1732363884600,-500.0,0.00021095,2]
[343111029,1732363884612,-500.0,0.00021095,2]
[343111030,1732363884621,-500.0,0.00021095,2]
[343111031,1732363884630,-500.0,0.00021095,2]
[343111032,1732363884640,-2279.09,0.00021095,2]
[343111033,1732363884649,-818.1,0.00021095,2]
[343111034,1732363884659,-500.0,0.00021095,2]
[343111035,1732363884669,-500.0,0.00021095,2]
[343111036,1732363884679,-500.0,0.00021095,2]
[343111037,1732363884689,-500.0,0.00021095,2]
[343111038,1732363884698,-500.0,0.00021095,2]
[343111039,1732363884707,-588.67515682,0.00021095,2]
[343111040,1732363884716,-500.0,0.00021095,2]
[343111041,1732363884725,-500.0,0.00021095,2]
[343111042,1732363884735,-500.0,0.00021095,2]
[343111043,1732363884745,-500.0,0.00021095,2]
[343111044,1732363884756,-500.0,0.00021095,2]
[343111045,1732363884766,-500.0,0.00021095,2]
[343111046,1732363884902,-147.05654662,0.00021095,2]
[343111047,1732363884919,-352.94345338,0.00021095,2]
[343111048,1732363884929,-500.0,0.00021095,2]
[343111049,1732363884939,-660.32,0.00021095,2]
[343111050,1732363884949,-500.0,0.00021095,2]
[343111051,1732363884960,-500.0,0.00021095,2]
[343111052,1732363884970,-167.02427896,0.00021095,2]
[343111053,1732363884980,-641.27142139,0.00021095,2]
[343111054,1732363884989,-500.0,0.00021095,2]
[343111055,1732363884999,-500.0,0.00021095,2]
[343111056,1732363885011,-2025.79,0.00021095,2]
[343111057,1732363885027,-526.89,0.00021095,2]
[343111058,1732363885038,-500.0,0.00021095,2]
[343111059,1732363885048,-500.0,0.00021095,2]
[343111060,1732363885060,-500.0,0.00021095,2]
[343111061,1732363885070,-500.0,0.00021095,2]
[343111062,1732363885081,-2792.79,0.00021095,2]
[343111063,1732363885091,-500.0,0.00021095,2]
[343111064,1732363885103,-665.0,0.00021095,2]
[343111065,1732363885115,-500.0,0.00021095,2]
[343111066,1732363885125,-500.0,0.00021095,2]
[343111067,1732363885137,-1500.44,0.00021095,2]
[343111068,1732363885148,-500.0,0.00021095,2]
[343111069,1732363885158,-500.0,0.00021095,2]
[343111070,1732363885168,-751.64,0.00021095,2]
[343111071,1732363885179,-1969.72,0.00021095,2]
[343111072,1732363885189,-607.39316212,0.00021095,2]
[343111073,1732363885200,-664.91,0.00021095,2]
[343111074,1732363885210,-579.36543951,0.00021095,2]
[343111075,1732363885220,-500.0,0.00021095,2]
[343111076,1732363885230,-500.22728908,0.00021095,2]
[343111077,1732363885240,-325.09279545,0.00021095,2]
[343111078,1732363885251,-500.0,0.00021095,2]
[343111079,1732363885261,-500.0,0.00021095,2]
[343111080,1732363885271,-2048.21,0.00021095,2]
[343111081,1732363885281,-788.01,0.00021095,2]
[343111082,1732363885291,-1124.43,0.00021095,2]
[343111083,1732363885301,-500.0,0.00021095,2]
[343111084,1732363885311,-306.58,0.00021095,2]
[343111085,1732363885322,-500.0,0.00021095,2]
[343111086,1732363885332,-500.0,0.00021095,2]
[343111087,1732363885342,-1339.0,0.00021095,2]
[343111088,1732363885353,-500.0,0.00021095,2]
[343111089,1732363885365,-3677.49,0.00021095,2]
[343111090,1732363885375,-500.0,0.00021095,2]
[343111091,1732363885385,-520.49519383,0.00021095,2]
[343111092,1732363885396,-500.0,0.00021095,2]
[343111093,1732363885406,-953.29,0.00021095,2]
[343111094,1732363885415,-2221.36,0.00021095,2]
[343111095,1732363885425,-256.10308401,0.00021095,2]
[343111096,1732363885435,-500.0,0.00021095,2]
[343111097,1732363885444,-2948.33,0.00021095,2]
[343111098,1732363885454,-1061.6,0.00021095,2]
[343111099,1732363885465,-500.0,0.00021095,2]
[343111100,1732363885475,-500.0,0.00021095,2]
[343111101,1732363885484,-587.96,0.00021095,2]
[343111102,1732363885494,-500.0,0.00021095,2]
[343111103,1732363885504,-500.0,0.00021095,2]
[343111104,1732363885515,-588.58,0.00021095,2]
[343111105,1732363885526,-500.0,0.00021095,2]
[343111106,1732363885536,-500.0,0.00021095,2]
[343111107,1732363885546,-500.0,0.00021095,2]
[343111108,1732363885556,-500.0,0.00021095,2]
[343111109,1732363885567,-571.75374436,0.00021095,2]
[343111110,1732363885577,-749.93,0.00021095,2]
[343111111,1732363885587,-500.0,0.00021095,2]
[343111112,1732363885597,-500.0,0.00021095,2]
[343111113,1732363885607,-500.0,0.00021095,2]
[343111114,1732363885620,-500.0,0.00021095,2]
[343111115,1732363885629,-2567.47,0.00021095,2]
[343111116,1732363885640,-500.0,0.00021095,2]
[343111117,1732363885650,-500.0,0.00021095,2]
[343111118,1732363885660,-500.0,0.00021095,2]
[343111119,1732363885671,-500.0,0.00021095,2]
[343111120,1732363885681,-500.0,0.00021095,2]
[343111121,1732363885691,-790.77,0.00021095,2]
[343111122,1732363885701,-1469.49,0.00021095,2]
[343111123,1732363885711,-742.26,0.00021095,2]
[343111124,1732363885720,-916.83,0.00021095,2]
[343111125,1732363885730,-1008.43,0.00021095,2]
[343111126,1732363885739,-1754.95,0.00021095,2]
[343111127,1732363885756,-500.0,0.00021095,2]
[343111128,1732363885767,-1328.13,0.00021095,2]
[343111129,1732363885777,-2115.15,0.00021095,2]
[343111130,1732363885787,-1264.18,0.00021095,2]
[343111131,1732363885796,-1063.75,0.00021095,2]
[343111132,1732363885806,-500.0,0.00021095,2]
[343111133,1732363885815,-3000.43,0.00021095,2]
[343111134,1732363885825,-970.07,0.00021095,2]
[343111135,1732363885835,-500.0,0.00021095,2]
[343111136,1732363885844,-1860.18,0.00021095,2]
[343111137,1732363885854,-1112.89,0.00021095,2]
[343111138,1732363885866,-500.0,0.00021095,2]
[343111139,1732363885876,-500.0,0.00021095,2]
[343111140,1732363885885,-500.0,0.00021095,2]
[343111141,1732363885896,-1936.77,0.00021095,2]
[343111142,1732363885906,-500.0,0.00021095,2]
[343111143,1732363885915,-702.49,0.00021095,2]
[343111144,1732363885927,-630.05211107,0.00021095,2]
[343111145,1732363885936,-500.0,0.00021095,2]
[343111146,1732363885946,-500.0,0.00021095,2]
[343111147,1732363885955,-1037.38,0.00021095,2]
[343111148,1732363885964,-2803.62,0.00021095,2]
[343111149,1732363885973,-2345.51,0.00021095,2]
[343111150,1732363885983,-1337.23,0.00021095,2]
[343111151,1732363885992,-500.0,0.00021095,2]
[343111152,1732363886001,-500.0,0.00021095,2]
[343111153,1732363886011,-500.0,0.00021095,2]
[343111154,1732363886020,-1166.03,0.00021095,2]
[343111155,1732363886034,-500.0,0.00021095,2]
[343111156,1732363886046,-500.0,0.00021095,2]
[343111157,1732363886059,-861.9,0.00021095,2]
[343111158,1732363886068,-1189.97,0.00021095,2]
[343111159,1732363886077,-577.2,0.00021095,2]
[343111160,1732363886087,-1458.21,0.00021095,2]
[343111161,1732363886097,-500.0,0.00021095,2]
[343111162,1732363886108,-1532.1,0.00021095,2]
[343111163,1732363886120,-1013.64,0.00021095,2]
[343111164,1732363886129,-1862.24,0.00021095,2]
[343111165,1732363886140,-507.25050851,0.00021095,2]
[343111166,1732363886150,-2662.96,0.00021095,2]
[343111167,1732363886160,-307.47173795,0.00021095,2]
[343111168,1732363886170,-500.0,0.00021095,2]
[343111169,1732363886179,-508.62407299,0.00021095,2]
[343111170,1732363886189,-500.0,0.00021095,2]
[343111171,1732363886200,-500.0,0.00021095,2]
[343111172,1732363886209,-1121.28,0.00021095,2]
[343111173,1732363886218,-623.68,0.00021095,2]
[343111174,1732363886228,-656.98,0.00021095,2]
[343111175,1732363886238,-500.0,0.00021095,2]
[343111176,1732363886247,-500.0,0.00021095,2]
[343111177,1732363886256,-1555.38,0.00021095,2]
[343111178,1732363886266,-278.74761872,0.00021095,2]
[343111179,1732363886281,-286.62238128,0.00021095,2]
[343111180,1732363886291,-263.39726572,0.00021095,2]
[343111181,1732363886397,-151.83351094,0.00020273,2]
[343111182,1732363886407,-534.83273428,0.00021095,2]
[343111183,1732363886417,-400.91375478,0.00021095,2]
[343111184,1732363886428,-99.08624522,0.00021095,2]
[343111185,1732363886437,-500.0,0.00021095,2]
[343111186,1732363886447,-839.02,0.00021095,2]
[343111187,1732363886457,-528.51,0.00021095,2]
[343111188,1732363886467,-500.0,0.00021095,2]
[343111189,1732363886476,-500.0,0.00021095,2]
[343111190,1732363886485,-347.63964951,0.00021095,2]
[343111191,1732363886495,-817.22,0.00021095,2]
[343111192,1732363886505,-522.84652678,0.00021095,2]
[343111193,1732363886622,-628.87347322,0.00021095,2]
[343111194,1732363886632,-500.0,0.00021095,2]
[343111195,1732363886642,-978.05,0.00021095,2]
[343111196,1732363886652,-500.0,0.00021095,2]
[343111197,1732363886661,-953.96,0.00021095,2]
[343111198,1732363886672,-500.0,0.00021095,2]
[343111199,1732363886681,-500.0,0.00021095,2]
[343111200,1732363886691,-500.0,0.00021095,2]
[343111201,1732363886700,-500.0,0.00021095,2]
[343111202,1732363886710,-772.5,0.00021095,2]
[343111203,1732363886720,-130.2410711,0.00021095,2]
[343111204,1732363886732,-369.7589289,0.00021095,2]
[343111205,1732363886852,-489.58437732,0.00021095,2]
[343111206,1732363886998,-10.41562268,0.00021095,2]
[343111207,1732363887008,-489.58118542,0.00021095,2]
[343111208,1732363917124,-613.95641316,0.00021095,2]
[343111209,1732363917139,-660.0,0.00021095,2]
[343111210,1732363917418,-500.0,0.00017799,2]
[343111211,1732363917428,-609.57001695,0.00017799,2]
[343111212,1732363917438,-147.19240142,0.00021095,2]
[343111213,1732363917449,-500.0,0.00021095,2]
[343111214,1732363917459,-500.0,0.00021095,2]
[343111215,1732363917469,-909.52,0.00021095,2]
[343111216,1732363917478,-1682.46,0.00021095,2]
[343111217,1732363917489,-1013.63,0.00021095,2]
[343111218,1732363917499,-500.0,0.00021095,2]
[343111219,1732363917508,-2805.8,0.00021095,2]
[343111220,1732363917518,-500.0,0.00021095,2]
[343111221,1732363917528,-693.81,0.00021095,2]
[343111222,1732363917538,-500.0,0.00021095,2]
[343111223,1732363917547,-1206.73,0.00021095,2]
[343111224,1732363917558,-500.0,0.00021095,2]
[343111225,1732363917568,-718.66,0.00021095,2]
[343111226,1732363917577,-461.93805933,0.00021095,2]
[343111227,1732363917588,-6072.35,0.00021095,2]
[343111228,1732363917602,-500.0,0.00021095,2]
[343111229,1732363917612,-500.0,0.00021095,2]
[343111230,1732363917622,-500.0,0.00021095,2]
[343111231,1732363917632,-500.0,0.00021095,2]
[343111232,1732363917645,-500.0,0.00021095,2]
[343111233,1732363917656,-250.0,0.00021095,2]
[343111234,1732363917665,-1172.77,0.00021095,2]
[343111235,1732363917675,-500.0,0.00021095,2]
[343111236,1732363917685,-1095.66,0.00021095,2]
[343111237,1732363917695,-500.0,0.00021095,2]
[343111238,1732363917705,-500.0,0.00021095,2]
[343111239,1732363917715,-500.0,0.00021095,2]
[343111240,1732363917726,-516.15915579,0.00021095,2]
[343111241,1732363917736,-1092.97,0.00021095,2]
[343111242,1732363917746,-752.35,0.00021095,2]
[343111243,1732363917756,-500.0,0.00021095,2]
[343111244,1732363917766,-1748.43036661,0.00021095,2]
[343111248,1732364046166,400.64118973,0.00027397,60]
[343111249,1732364074928,500.0,0.00028813,120]
[343111372,1732365032347,-300.0,9.999e-05,2]
[343111374,1732365032357,-300.0,9.999e-05,2]
[343111376,1732365032366,-249.87584568,0.0001,2]
[343111378,1732365032376,-1646.92631998,0.0001,2]
[343111383,1732365032422,-47601.52881242,0.0001,2]
[343111385,1732365032433,-191.490462,0.00013973,2]
[343111387,1732365032444,-24880.0,0.0001692,2]
[343111389,1732365032455,-233.595506,0.00017613,2]
[343111391,1732365032464,-3372.23366119,0.000178,2]
[343111393,1732365032474,-530.0,0.0001819,2]
[343111395,1732365032484,-1105.0,0.0001819,2]
[343111396,1732365032493,-911.61036866,0.0001819,2]
[343111399,1732365032522,-1058.04732926,0.0001819,2]
[343111401,1732365032534,-410.34230208,0.0001819,2]
[343111403,1732365032544,-1041.14358009,0.00018793,2]
[343111404,1732365032556,-594.8282063,0.00018793,2]
[343111405,1732365032567,-218.31161564,0.00018982,2]
[343111440,1732365043404,-15.28389036,0.00018982,2]
[343111441,1732365043418,-500.0,0.00019177,2]
[343111442,1732365043427,-500.0,0.00019177,2]
[343111443,1732365043437,-355.90949531,0.00019177,2]
[343111445,1732365043447,-291.80645992,0.00019177,2]
[343111446,1732365043456,-500.0,0.00019177,2]
[343111448,1732365043466,-622.21894869,0.00019177,2]
[343111449,1732365043476,-541.12643118,0.00019178,2]
[343111451,1732365043486,-500.0,0.00019178,2]
[343111453,1732365043496,-500.0,0.00019178,2]
[343111456,1732365043505,-500.0,0.00019178,2]
[343111458,1732365043514,-500.0,0.00019178,2]
[343111459,1732365043524,-500.0,0.00019178,2]
[343111460,1732365043534,-500.0,0.00019178,2]
[343111461,1732365043543,-268.12365066,0.00019178,2]
[343111462,1732365043552,-500.0,0.00019178,2]
[343111463,1732365043562,-500.0,0.00019178,2]
[343111464,1732365043571,-525.34,0.00019178,2]
[343111465,1732365043581,-500.0,0.00019178,2]
[343111466,1732365043591,-500.0,0.00019178,2]
[343111467,1732365043600,-749.62,0.00019178,2]
[343111468,1732365043610,-500.0,0.00019178,2]
[343111469,1732365043620,-500.0,0.00019178,2]
[343111470,1732365043630,-892.67,0.00019178,2]
[343111471,1732365043640,-498.6788877,0.00019178,2]
[343111477,1732365051269,-136.8411123,0.00019178,2]
[343111478,1732365051278,-1480.91,0.00019178,2]
[343111479,1732365051287,-500.0,0.00019178,2]
[343111480,1732365051296,-500.0,0.00019178,2]
[343111481,1732365051306,-523.94361315,0.00019178,2]